[Event "Seniors-LEM-65 Sachsen-Anhalt 2024"]
[Site "Magdeburg"]
[Date "2024.07.05"]
[Round "5.30"]
[White "Rausch, Erik"]
[Black "Costello, Colin A"]
[Result "0-1"]
[ECO "D34"]
[WhiteElo "1827"]
[BlackElo "1911"]
[Annotator "RC"]
[PlyCount "54"]
[EventDate "2024.06.25"]
[EventType "swiss"]
[EventCountry "GER"]
[SourceTitle "playchess.com"]
[Source "ChessBase"]
[SourceQuality "1"]
[TimeControl "40/5400+30:1800+30"]

1. d4 {[%emt 0:00:13]} Nf6 {[%emt 0:00:07]} 2. Nf3 {[%emt 0:00:23]} d5 {[%emt 0:00:31]} 3. g3 {[%emt 0:00:28]} e6 {[%emt 0:00:24]} 4. Bg2 {[%emt 0:00:09]} c5 {[%emt 0:00:09]} 5. O-O {[%emt 0:00:31]} Nc6 {[%emt 0:00:11]} 6. c4 {[%emt 0:02:50]} cxd4 {[%emt 0:01:06]} 7. Nxd4 {[%emt 0:06:29]} Be7 {[%emt 0:01:48]} 8. cxd5 {[%emt 0:02:50]} exd5 {[%emt 0:00:08]} 9. Nc3 {[%emt 0:01:46]} O-O {[%emt 0:00:23]} 10. Bf4 {[%emt 0:03:03]} a6 {[%emt 0:10:43]} 11. Rc1 {[%emt 0:05:05]} Bg4 {[%emt 0:01:39]} 12. h3 {[%emt 0:05:24]} Be6 {[%emt 0:00:08]} 13. Nxc6 {[%emt 0:05:21]} bxc6 {[%emt 0:00:09]} 14. e3 {[%emt 0:03:39]} Rc8 {[%emt 0:07:16]} 15. Qe2 {[%emt 0:03:17]} Qa5 {[%emt 0:01:46]} 16. Rfd1 {[%emt 0:03:30]} Rfd8 {[%emt 0:00:17]} 17. Rd4 {[%emt 0:04:57]} Bb4 {[%emt 0:04:10]} 18. a3 {[%emt 0:01:33]} Bxc3 {[%emt 0:00:10]} 19. Rxc3 {[%emt 0:00:37]} c5 {[%emt 0:00:33]} 20. Rd1 {[%emt 0:03:33]} Qb5 {[%emt 0:10:07]} 21. Bf1 {[%emt 0:04:41]} Ne4 {[%emt 0:02:32]} 22. Qc2 {[%emt 0:02:05]} Qa5 {[%emt 0:05:17]} 23. Rcd3 {[%emt 0:04:28]} g5 {[%emt 0:03:01]} 24. Be5 {[%emt 0:00:37]} c4 {[%emt 0:06:12]} 25. Rd4 {[%emt 0:04:05]} Bf5 {[%emt 0:03:02]} 26. g4 {[%emt 0:02:37]} Bg6 {[%emt 0:00:47]} 27. Qb3 {[%emt 0:01:51]} cxb3 {[%emt 0:00:47]} 0-1